[Event "Reykjavik Open 2025"]
[Site "Reykjavik"]
[Date "2025.04.10"]
[Round "2.23"]
[White "Licznerski, Lukasz"]
[Black "Fodor, Balazs"]
[Result "1-0"]
[Annotator "RC"]
[ECO "B20"]
[WhiteElo "2436"]
[BlackElo "2206"]
[PlyCount "119"]
[EventDate "2025.04.09"]
[EventType "swiss"]
[EventCountry "ISL"]
[SourceTitle "playchess.com"]
[Source "ChessBase"]
[SourceQuality "1"]
[TimeControl "40/5400+30:1800+30"]

1. e4 {[%emt 0:01:41]} c5 {[%emt 0:00:10]} 2. Ne2 {[%emt 0:00:27]} d6 {[%emt 0:02:06]} 3. g3 {[%emt 0:00:04]} Nf6 {[%emt 0:04:13]} 4. Bg2 {[%emt 0:00:06]} Nc6 {[%emt 0:01:13]} 5. O-O {[%emt 0:00:59]} g6 {[%emt 0:00:21]} 6. c3 {[%emt 0:00:08]} Bg7 {[%emt 0:07:21]} 7. d4 {[%emt 0:00:05]} cxd4 {[%emt 0:01:16]} 8. cxd4 {[%emt 0:00:04]} O-O {[%emt 0:00:21]} 9. Nbc3 {[%emt 0:00:03]} e5 {[%emt 0:00:37]} 10. d5 {[%emt 0:01:55]} Nb8 {[%emt 0:00:08]} 11. h3 {[%emt 0:00:32]} Nbd7 {[%emt 0:05:36]} 12. Be3 {[%emt 0:00:36]} Ne8 {[%emt 0:05:54]} 13. Qd2 {[%emt 0:01:56]} b6 {[%emt 0:06:07]} 14. b4 {[%emt 0:06:54]} Bb7 {[%emt 0:01:50]} 15. Rac1 {[%emt 0:04:03]} a6 {[%emt 0:05:26]} 16. Na4 {[%emt 0:07:00]} b5 {[%emt 0:11:28]} 17. Nb2 {[%emt 0:00:56]} f5 {[%emt 0:00:07]} 18. f4 {[%emt 0:04:59]} fxe4 {[%emt 0:03:36]} 19. Bxe4 {[%emt 0:02:38]} Rc8 {[%emt 0:13:21]} 20. Bg2 {[%emt 0:03:23]} Rxc1 {[%emt 0:00:44]} 21. Rxc1 {[%emt 0:00:45]} Qa8 {[%emt 0:00:31]} 22. Nd1 {[%emt 0:17:39]} Nef6 {[%emt 0:04:09]} 23. Ndc3 {[%emt 0:07:54]} Rc8 {[%emt 0:02:55]} 24. Rf1 {[%emt 0:06:34]} Re8 {[%emt 0:04:19]} 25. f5 {[%emt 0:00:56]} gxf5 {[%emt 0:06:43]} 26. Rxf5 {[%emt 0:01:42]} Rf8 {[%emt 0:00:09]} 27. g4 {[%emt 0:01:11]} Qc8 {[%emt 0:05:17]} 28. Bh6 {[%emt 0:08:25]} Rf7 {[%emt 0:02:32]} 29. Bxg7 {[%emt 0:01:47]} Rxg7 {[%emt 0:00:05]} 30. Ng3 {[%emt 0:00:26]} Qc4 {[%emt 0:01:14]} 31. Rg5 {[%emt 0:01:16]} Qd4+ {[%emt 0:01:08]} 32. Qxd4 {[%emt 0:00:11]} exd4 {[%emt 0:00:07]} 33. Rxg7+ {[%emt 0:00:09]} Kxg7 {[%emt 0:00:04]} 34. Nf5+ {[%emt 0:00:08]} Kf8 {[%emt 0:00:17]} 35. Nxd4 {[%emt 0:00:07]} Nb6 {[%emt 0:00:48]} 36. Ne6+ {[%emt 0:00:59]} Ke7 {[%emt 0:00:26]} 37. Nf4 {[%emt 0:00:22]} h6 {[%emt 0:00:49]} 38. Kf2 {[%emt 0:00:35]} Nc4 {[%emt 0:00:37]} 39. Ke2 {[%emt 0:01:56]} Nd7 {[%emt 0:02:11]} 40. Kd3 {[%emt 0:02:08]} Nde5+ {[%emt 0:00:48]} 41. Kd4 {[%emt 0:30:28]} Bc8 {[%emt 0:03:42]} 42. Nce2 {[%emt 0:00:00]} Kf6 {[%emt 0:02:24]} 43. Ng3 {[%emt 0:03:07]} Bd7 {[%emt 0:00:46]} 44. Ne6 {[%emt 0:00:00]} Bxe6 {[%emt 0:05:59]} 45. dxe6 {[%emt 0:00:00]} Kxe6 {[%emt 0:00:25]} 46. Nf5 {[%emt 0:00:00]} a5 {[%emt 0:00:59]} 47. Bd5+ {[%emt 0:00:00]} Kd7 {[%emt 0:01:49]} 48. bxa5 {[%emt 0:00:00]} Nxa5 {[%emt 0:00:06]} 49. Nxh6 {[%emt 0:00:00]} Nac6+ {[%emt 0:00:32]} 50. Ke4 {[%emt 0:00:00]} Ne7 {[%emt 0:02:16]} 51. Bb3 {[%emt 0:00:00]} N7g6 {[%emt 0:02:16]} 52. Nf5 {[%emt 0:00:00]} Kc6 {[%emt 0:00:31]} 53. Nd4+ {[%emt 0:00:00]} Kc5 {[%emt 0:00:27]} 54. Ne6+ {[%emt 0:00:00]} Kc6 {[%emt 0:00:16]} 55. Kf5 {[%emt 0:01:49]} Nh4+ {[%emt 0:00:19]} 56. Kg5 {[%emt 0:00:20]} Nef3+ {[%emt 0:00:29]} 57. Kh5 {[%emt 0:00:46]} d5 {[%emt 0:00:50]} 58. g5 {[%emt 0:00:23]} Kd6 {[%emt 0:00:19]} 59. Nf4 {[%emt 0:00:48]} d4 {[%emt 0:00:14]} 60. g6 {[%emt 0:00:24]} 1-0

[Event "Reykjavik Open 2025"]
[Site "Reykjavik"]
[Date "2025.04.10"]
[Round "2.24"]
[White "Garbuz, Vitaliy"]
[Black "Prraneeth Vuppala"]
[Result "0-1"]
[Annotator "RC"]
[ECO "C02"]
[WhiteElo "2203"]
[BlackElo "2433"]
[PlyCount "62"]
[EventDate "2025.04.09"]
[EventType "swiss"]
[EventCountry "ISL"]
[SourceTitle "playchess.com"]
[Source "ChessBase"]
[SourceQuality "1"]
[TimeControl "40/5400+30:1800+30"]

1. e4 {[%emt 0:16:45]} c5 {[%emt 0:00:56]} 2. c3 {[%emt 0:00:07]} e6 {[%emt 0:02:21]} 3. Nf3 {[%emt 0:00:31]} d5 {[%emt 0:00:48]} 4. e5 {[%emt 0:09:42]} Nc6 {[%emt 0:00:46]} 5. d4 {[%emt 0:00:14]} Bd7 {[%emt 0:00:14]} 6. Be2 {[%emt 0:00:15]} Nge7 {[%emt 0:00:32]} 7. dxc5 {[%emt 0:06:20]} Ng6 {[%emt 0:05:37]} 8. Be3 {[%emt 0:04:47]} Ngxe5 {[%emt 0:02:09]} 9. Nxe5 {[%emt 0:00:19]} Nxe5 {[%emt 0:00:05]} 10. Nd2 {[%emt 0:07:00]} Be7 {[%emt 0:01:54]} 11. f4 {[%emt 0:09:51]} Ng6 {[%emt 0:06:28]} 12. O-O {[%emt 0:05:18]} Qc7 {[%emt 0:02:40]} 13. b4 {[%emt 0:01:10]} Bf6 {[%emt 0:00:10]} 14. Rc1 {[%emt 0:02:08]} O-O {[%emt 0:00:15]} 15. g3 {[%emt 0:10:09]} a5 {[%emt 0:06:40]} 16. a3 {[%emt 0:03:26]} axb4 {[%emt 0:05:40]} 17. axb4 {[%emt 0:00:12]} e5 {[%emt 0:00:05]} 18. fxe5 {[%emt 0:00:52]} Bxe5 {[%emt 0:00:10]} 19. Nf3 {[%emt 0:01:25]} Bxg3 {[%emt 0:19:08]} 20. hxg3 {[%emt 0:00:06]} Qxg3+ {[%emt 0:00:05]} 21. Kh1 {[%emt 0:00:12]} Qh3+ {[%emt 0:00:31]} 22. Kg1 {[%emt 0:00:11]} Rfe8 {[%emt 0:02:38]} 23. Kf2 {[%emt 0:04:59]} Nh4 {[%emt 0:04:18]} 24. Rg1 {[%emt 0:01:59]} Nxf3 {[%emt 0:01:27]} 25. Bxf3 {[%emt 0:02:45]} Qh4+ {[%emt 0:01:31]} 26. Ke2 {[%emt 0:00:16]} Rxe3+ {[%emt 0:01:33]} 27. Kxe3 {[%emt 0:00:06]} Re8+ {[%emt 0:00:05]} 28. Kd2 {[%emt 0:01:04]} Qf4+ {[%emt 0:00:20]} 29. Kc2 {[%emt 0:00:16]} Ba4+ {[%emt 0:00:18]} 30. Kb2 {[%emt 0:00:17]} Bxd1 {[%emt 0:00:06]} 31. Bxd1 {[%emt 0:00:13]} d4 {[%emt 0:00:31]} 0-1

[Event "Reykjavik Open 2025"]
[Site "Reykjavik"]
[Date "2025.04.10"]
[Round "2.25"]
[White "Kracht, Raphael"]
[Black "Lu, Miaoyi"]
[Result "0-1"]
[Annotator "RC"]
[ECO "C54"]
[WhiteElo "2196"]
[BlackElo "2429"]
[PlyCount "114"]
[EventDate "2025.04.09"]
[EventType "swiss"]
[EventCountry "ISL"]
[SourceTitle "playchess.com"]
[Source "ChessBase"]
[SourceQuality "1"]
[TimeControl "40/5400+30:1800+30"]

1. e4 {[%emt 0:08:32]} e5 {[%emt 0:00:05]} 2. Nf3 {[%emt 0:00:08]} Nc6 {[%emt 0:00:08]} 3. Bc4 {[%emt 0:00:09]} Nf6 {[%emt 0:00:14]} 4. d3 {[%emt 0:00:05]} Bc5 {[%emt 0:01:44]} 5. c3 {[%emt 0:00:42]} d6 {[%emt 0:00:08]} 6. O-O {[%emt 0:00:07]} O-O {[%emt 0:04:09]} 7. Re1 {[%emt 0:00:05]} a5 {[%emt 0:00:04]} 8. h3 {[%emt 0:00:16]} Be6 {[%emt 0:00:37]} 9. Bb5 {[%emt 0:01:48]} Ba7 {[%emt 0:00:06]} 10. d4 {[%emt 0:03:54]} Bd7 {[%emt 0:07:26]} 11. Na3 {[%emt 0:33:13]} Re8 {[%emt 0:11:05]} 12. dxe5 {[%emt 0:08:09]} Nxe5 {[%emt 0:02:01]} 13. Bg5 {[%emt 0:17:09]} c6 {[%emt 0:09:48]} 14. Bf1 {[%emt 0:15:35]} h6 {[%emt 0:16:12]} 15. Be3 {[%emt 0:06:31]} Nxf3+ {[%emt 0:01:00]} 16. Qxf3 {[%emt 0:00:17]} Rxe4 {[%emt 0:00:49]} 17. Bxa7 {[%emt 0:00:05]} Rxe1 {[%emt 0:00:05]} 18. Rxe1 {[%emt 0:00:04]} Rxa7 {[%emt 0:00:05]} 19. Nc4 {[%emt 0:02:21]} Be6 {[%emt 0:05:06]} 20. Ne3 {[%emt 0:00:46]} a4 {[%emt 0:08:17]} 21. a3 {[%emt 0:00:31]} Ra5 {[%emt 0:01:15]} 22. Rd1 {[%emt 0:00:23]} d5 {[%emt 0:06:36]} 23. Qg3 {[%emt 0:00:36]} Ra8 {[%emt 0:00:29]} 24. Bd3 {[%emt 0:00:15]} Qb8 {[%emt 0:05:11]} 25. Qh4 {[%emt 0:00:46]} Qe5 {[%emt 0:02:08]} 26. Qb4 {[%emt 0:00:06]} Qc7 {[%emt 0:00:53]} 27. Bc2 {[%emt 0:00:09]} b5 {[%emt 0:00:37]} 28. Qc5 {[%emt 0:00:59]} Re8 {[%emt 0:06:07]} 29. Bd3 {[%emt 0:00:35]} Nd7 {[%emt 0:00:07]} 30. Qd4 {[%emt 0:00:34]} Ne5 {[%emt 0:02:58]} 31. Be2 {[%emt 0:00:29]} Nc4 {[%emt 0:02:03]} 32. Nxc4 {[%emt 0:00:38]} bxc4 {[%emt 0:00:05]} 33. Rd2 {[%emt 0:00:30]} c5 {[%emt 0:00:43]} 34. Qh4 {[%emt 0:00:23]} Qe5 {[%emt 0:01:00]} 35. Qg3 {[%emt 0:00:28]} Qe4 {[%emt 0:02:21]} 36. Qe3 {[%emt 0:00:39]} Qb1+ {[%emt 0:00:55]} 37. Kh2 {[%emt 0:00:03]} Qc1 {[%emt 0:02:14]} 38. Bxc4 {[%emt 0:00:30]} Bd7 {[%emt 0:02:47]} 39. Qd3 {[%emt 0:00:20]} Bf5 {[%emt 0:00:04]} 40. Qxf5 {[%emt 0:01:03]} Qxd2 {[%emt 0:00:07]} 41. Bxd5 {[%emt 0:30:05]} Rf8 {[%emt 0:03:17]} 42. Bc4 {[%emt 0:00:00]} Qd6+ {[%emt 0:04:42]} 43. g3 {[%emt 0:00:00]} g6 {[%emt 0:01:38]} 44. Qf3 {[%emt 0:00:00]} Kg7 {[%emt 0:01:28]} 45. Kg2 {[%emt 0:00:00]} Qc7 {[%emt 0:06:58]} 46. Bb5 {[%emt 0:05:18]} Rb8 {[%emt 0:01:24]} 47. Bxa4 {[%emt 0:00:00]} Rxb2 {[%emt 0:01:17]} 48. c4 {[%emt 0:00:00]} Qe5 {[%emt 0:04:50]} 49. Bc6 {[%emt 0:00:00]} Qf6 {[%emt 0:00:19]} 50. a4 {[%emt 0:00:00]} Rc2 {[%emt 0:02:30]} 51. Bb5 {[%emt 0:00:00]} Qe5 {[%emt 0:01:41]} 52. h4 {[%emt 0:00:00]} Qe1 {[%emt 0:00:43]} 53. h5 {[%emt 0:00:00]} Rc1 {[%emt 0:02:22]} 54. Kh3 {[%emt 0:00:00]} Rc3 {[%emt 0:02:33]} 55. Qg2 {[%emt 0:00:00]} Rc2 {[%emt 0:01:03]} 56. hxg6 {[%emt 0:00:00]} Rxf2 {[%emt 0:00:06]} 57. Qb7 {[%emt 0:00:00]} Qe6+ {[%emt 0:00:15]} 0-1

[Event "Reykjavik Open 2025"]
[Site "Reykjavik"]
[Date "2025.04.10"]
[Round "2.26"]
[White "Yankelevich, Lev"]
[Black "Mannion, Stephen R"]
[Result "1-0"]
[Annotator "RC"]
[ECO "C96"]
[WhiteElo "2413"]
[BlackElo "2180"]
[PlyCount "99"]
[EventDate "2025.04.09"]
[EventType "swiss"]
[EventCountry "ISL"]
[SourceTitle "playchess.com"]
[Source "ChessBase"]
[SourceQuality "1"]
[TimeControl "40/5400+30:1800+30"]

1. e4 {[%emt 0:11:06]} e5 {[%emt 0:00:05]} 2. Nf3 {[%emt 0:00:35]} Nc6 {[%emt 0:00:12]} 3. Bb5 {[%emt 0:00:07]} a6 {[%emt 0:00:07]} 4. Ba4 {[%emt 0:00:04]} Nf6 {[%emt 0:00:06]} 5. O-O {[%emt 0:00:09]} Be7 {[%emt 0:00:11]} 6. Re1 {[%emt 0:00:09]} b5 {[%emt 0:00:12]} 7. Bb3 {[%emt 0:00:07]} d6 {[%emt 0:00:10]} 8. c3 {[%emt 0:00:07]} O-O {[%emt 0:00:11]} 9. h3 {[%emt 0:00:17]} Na5 {[%emt 0:00:09]} 10. Bc2 {[%emt 0:00:07]} c5 {[%emt 0:00:06]} 11. d4 {[%emt 0:00:05]} Nd7 {[%emt 0:00:18]} 12. Nbd2 {[%emt 0:06:06]} exd4 {[%emt 0:00:12]} 13. cxd4 {[%emt 0:00:07]} Nc6 {[%emt 0:00:07]} 14. d5 {[%emt 0:00:25]} Nce5 {[%emt 0:00:06]} 15. a4 {[%emt 0:00:08]} Rb8 {[%emt 0:00:12]} 16. Nxe5 {[%emt 0:00:34]} Nxe5 {[%emt 0:00:05]} 17. axb5 {[%emt 0:01:30]} axb5 {[%emt 0:00:12]} 18. f4 {[%emt 0:00:05]} Ng6 {[%emt 0:00:09]} 19. Nf3 {[%emt 0:00:06]} Bh4 {[%emt 0:00:15]} 20. Rf1 {[%emt 0:00:08]} Bg3 {[%emt 0:00:23]} 21. f5 {[%emt 0:00:11]} Ne5 {[%emt 0:00:13]} 22. Ng5 {[%emt 0:00:07]} h6 {[%emt 0:00:45]} 23. f6 {[%emt 0:00:13]} gxf6 {[%emt 0:00:26]} 24. Nf3 {[%emt 0:00:06]} Kg7 {[%emt 0:01:09]} 25. b4 {[%emt 0:00:04]} Qe7 {[%emt 0:56:32]} 26. Ra3 {[%emt 0:11:33]} Nc4 {[%emt 0:04:48]} 27. Rb3 {[%emt 0:02:11]} Bd7 {[%emt 0:00:20]} 28. Nd4 {[%emt 0:12:16]} Be5 {[%emt 0:00:47]} 29. Nc6 {[%emt 0:05:47]} Bxc6 {[%emt 0:08:31]} 30. Qg4+ {[%emt 0:05:09]} Kh7 {[%emt 0:00:07]} 31. Bxh6 {[%emt 0:01:56]} Rg8 {[%emt 0:09:31]} 32. Qh5 {[%emt 0:00:38]} Rg7 {[%emt 0:00:29]} 33. Rf4 {[%emt 0:11:10]} Bd4+ {[%emt 0:18:32]} 34. Kh1 {[%emt 0:00:14]} Ne5 {[%emt 0:00:06]} 35. Bg5+ {[%emt 0:24:57]} Kg8 {[%emt 0:00:13]} 36. Bxf6 {[%emt 0:00:03]} Qa7 {[%emt 0:00:45]} 37. Bxg7 {[%emt 0:04:54]} Kxg7 {[%emt 0:00:22]} 38. dxc6 {[%emt 0:00:26]} Ng6 {[%emt 0:01:26]} 39. Rf1 {[%emt 0:00:29]} Be5 {[%emt 0:00:53]} 40. Qf5 {[%emt 0:03:40]} c4 {[%emt 0:00:29]} 41. Rbf3 {[%emt 0:03:50]} Rf8 {[%emt 0:00:43]} 42. h4 {[%emt 0:02:11]} f6 {[%emt 0:09:02]} 43. Qg4 {[%emt 0:02:10]} Kf7 {[%emt 0:04:51]} 44. Rf5 {[%emt 0:01:23]} Rh8 {[%emt 0:04:45]} 45. Rh5 {[%emt 0:02:14]} Rxh5 {[%emt 0:00:07]} 46. Qxh5 {[%emt 0:00:02]} Kg7 {[%emt 0:00:19]} 47. Qg4 {[%emt 0:00:42]} Kf7 {[%emt 0:01:15]} 48. h5 {[%emt 0:04:31]} Nf8 {[%emt 0:10:13]} 49. Qc8 {[%emt 0:02:20]} Ne6 {[%emt 0:02:57]} 50. h6 {[%emt 0:01:47]} 1-0

[Event "Reykjavik Open 2025"]
[Site "Reykjavik"]
[Date "2025.04.10"]
[Round "2.27"]
[White "Shafer, Logan C"]
[Black "Fantinel, Thibault"]
[Result "1/2-1/2"]
[Annotator "RC"]
[ECO "B22"]
[WhiteElo "2193"]
[BlackElo "2411"]
[PlyCount "126"]
[EventDate "2025.04.09"]
[EventType "swiss"]
[EventCountry "ISL"]
[SourceTitle "playchess.com"]
[Source "ChessBase"]
[SourceQuality "1"]
[TimeControl "40/5400+30:1800+30"]

1. e4 {[%emt 0:00:03]} c5 {[%emt 0:03:51]} 2. Nf3 {[%emt 0:00:08]} e6 {[%emt 0:00:03]} 3. c3 {[%emt 0:00:08]} Nf6 {[%emt 0:04:16]} 4. e5 {[%emt 0:00:10]} Nd5 {[%emt 0:00:02]} 5. d4 {[%emt 0:00:09]} cxd4 {[%emt 0:00:03]} 6. cxd4 {[%emt 0:00:09]} b6 {[%emt 0:00:26]} 7. Nc3 {[%emt 0:03:00]} Nxc3 {[%emt 0:00:41]} 8. bxc3 {[%emt 0:00:02]} Bb7 {[%emt 0:00:04]} 9. Bd3 {[%emt 0:01:26]} d6 {[%emt 0:00:43]} 10. O-O {[%emt 0:02:17]} Nd7 {[%emt 0:01:31]} 11. Qe2 {[%emt 0:01:54]} Qc7 {[%emt 0:06:45]} 12. Bf4 {[%emt 0:05:46]} Be7 {[%emt 0:03:16]} 13. Rac1 {[%emt 0:05:11]} O-O {[%emt 0:04:40]} 14. Rfe1 {[%emt 0:05:52]} Bxf3 {[%emt 0:20:25]} 15. Qxf3 {[%emt 0:01:01]} dxe5 {[%emt 0:00:04]} 16. Bxe5 {[%emt 0:06:09]} Nxe5 {[%emt 0:00:05]} 17. Rxe5 {[%emt 0:00:14]} g6 {[%emt 0:01:22]} 18. Ree1 {[%emt 0:07:41]} Rad8 {[%emt 0:03:44]} 19. g3 {[%emt 0:00:00]} Rd5 {[%emt 0:01:02]} 20. Rc2 {[%emt 0:03:54]} Rfd8 {[%emt 0:00:52]} 21. Qe2 {[%emt 0:02:25]} Bf8 {[%emt 0:02:34]} 22. Be4 {[%emt 0:03:44]} Ra5 {[%emt 0:01:48]} 23. Rd1 {[%emt 0:01:44]} Bg7 {[%emt 0:00:04]} 24. h4 {[%emt 0:05:49]} Ra3 {[%emt 0:03:54]} 25. Rd3 {[%emt 0:04:52]} Bf8 {[%emt 0:17:45]} 26. h5 {[%emt 0:04:30]} Qc4 {[%emt 0:01:40]} 27. Qd2 {[%emt 0:02:37]} Ra5 {[%emt 0:06:06]} 28. hxg6 {[%emt 0:00:57]} hxg6 {[%emt 0:00:01]} 29. Rf3 {[%emt 0:03:11]} Rh5 {[%emt 0:03:22]} 30. Qd3 {[%emt 0:07:24]} Qxd3 {[%emt 0:00:04]} 31. Rxd3 {[%emt 0:00:38]} Ra5 {[%emt 0:00:04]} 32. d5 {[%emt 0:07:00]} e5 {[%emt 0:03:47]} 33. g4 {[%emt 0:00:44]} Rd6 {[%emt 0:00:41]} 34. c4 {[%emt 0:02:06]} Rf6 {[%emt 0:03:37]} 35. g5 {[%emt 0:06:48]} Rf4 {[%emt 0:01:31]} 36. f3 {[%emt 0:00:11]} Bd6 {[%emt 0:00:05]} 37. Rdd2 {[%emt 0:05:36]} Rh4 {[%emt 0:02:23]} 38. Rh2 {[%emt 0:00:50]} Rxh2 {[%emt 0:00:37]} 39. Kxh2 {[%emt 0:00:18]} Kf8 {[%emt 0:00:24]} 40. Kg3 {[%emt 0:00:39]} Ke7 {[%emt 0:00:32]} 41. Kg4 {[%emt 0:31:41]} Ra3 {[%emt 0:30:06]} 42. Re2 {[%emt 0:01:29]} Rc3 {[%emt 0:03:04]} 43. Rc2 {[%emt 0:00:00]} Re3 {[%emt 0:00:00]} 44. Rg2 {[%emt 0:00:00]} Re1 {[%emt 0:00:00]} 45. Kg3 {[%emt 0:00:00]} Bc5 {[%emt 0:00:00]} 46. Rh2 {[%emt 0:00:00]} Be3 {[%emt 0:00:00]} 47. Rh7 {[%emt 0:00:00]} Rg1+ {[%emt 0:00:00]} 48. Kh2 {[%emt 0:00:00]} Rxg5 {[%emt 0:00:00]} 49. d6+ {[%emt 0:00:00]} Kxd6 {[%emt 0:00:00]} 50. Rxf7 {[%emt 0:00:00]} Bf4+ {[%emt 0:00:00]} 51. Kh1 {[%emt 0:00:00]} a5 {[%emt 0:00:00]} 52. Rf6+ {[%emt 0:00:00]} Kc5 {[%emt 0:00:00]} 53. Rc6+ {[%emt 0:00:00]} Kd4 {[%emt 0:00:00]} 54. Rxb6 {[%emt 0:00:00]} Rh5+ {[%emt 0:00:00]} 55. Kg1 {[%emt 0:00:00]} Rh2 {[%emt 0:00:00]} 56. a4 {[%emt 0:00:00]} Ra2 {[%emt 0:00:00]} 57. Rd6+ {[%emt 0:00:00]} Kc5 {[%emt 0:00:00]} 58. Rd5+ {[%emt 0:00:00]} Kxc4 {[%emt 0:00:00]} 59. Rxa5 {[%emt 0:00:00]} Kb4 {[%emt 0:00:00]} 60. Ra6 {[%emt 0:00:00]} Ra1+ {[%emt 0:00:56]} 61. Kg2 {[%emt 0:00:00]} Ra2+ {[%emt 0:00:01]} 62. Kg1 {[%emt 0:00:00]} Ra1+ {[%emt 0:00:02]} 63. Kg2 {[%emt 0:00:00]} Ra2+ {[%emt 0:00:02]} 1/2-1/2

[Event "Reykjavik Open 2025"]
[Site "Reykjavik"]
[Date "2025.04.10"]
[Round "2.28"]
[White "Joel Paul Ganta"]
[Black "Thorhallsson, Throstur"]
[Result "1/2-1/2"]
[Annotator "RC"]
[ECO "D36"]
[WhiteElo "2170"]
[BlackElo "2394"]
[PlyCount "68"]
[EventDate "2025.04.09"]
[EventType "swiss"]
[EventCountry "ISL"]
[SourceTitle "playchess.com"]
[Source "ChessBase"]
[SourceQuality "1"]
[TimeControl "40/5400+30:1800+30"]

1. d4 {[%emt 0:00:04]} d5 {[%emt 0:04:21]} 2. c4 {[%emt 0:00:04]} e6 {[%emt 0:00:22]} 3. Nc3 {[%emt 0:00:04]} Nf6 {[%emt 0:00:09]} 4. cxd5 {[%emt 0:00:04]} exd5 {[%emt 0:00:07]} 5. Bg5 {[%emt 0:00:05]} c6 {[%emt 0:01:32]} 6. e3 {[%emt 0:00:04]} Be7 {[%emt 0:00:51]} 7. Qc2 {[%emt 0:00:05]} Nbd7 {[%emt 0:01:14]} 8. Bd3 {[%emt 0:00:04]} Nh5 {[%emt 0:01:35]} 9. Bxe7 {[%emt 0:00:08]} Qxe7 {[%emt 0:00:07]} 10. O-O-O {[%emt 0:00:07]} Nb6 {[%emt 0:02:31]} 11. Kb1 {[%emt 0:00:07]} Nf6 {[%emt 0:01:40]} 12. Nf3 {[%emt 0:00:10]} Bg4 {[%emt 0:02:33]} 13. Rc1 {[%emt 0:01:53]} Bxf3 {[%emt 0:09:29]} 14. gxf3 {[%emt 0:00:13]} g6 {[%emt 0:00:53]} 15. Ka1 {[%emt 0:06:40]} Nh5 {[%emt 0:04:13]} 16. f4 {[%emt 0:17:30]} Nf6 {[%emt 0:10:10]} 17. h4 {[%emt 0:10:46]} Nc8 {[%emt 0:12:13]} 18. h5 {[%emt 0:20:45]} Nxh5 {[%emt 0:05:50]} 19. f5 {[%emt 0:02:59]} Nd6 {[%emt 0:07:11]} 20. e4 {[%emt 0:08:54]} dxe4 {[%emt 0:01:58]} 21. Nxe4 {[%emt 0:00:37]} O-O-O {[%emt 0:09:14]} 22. Rhe1 {[%emt 0:07:31]} Nxe4 {[%emt 0:02:34]} 23. Bxe4 {[%emt 0:00:23]} Qd6 {[%emt 0:05:37]} 24. d5 {[%emt 0:17:46]} c5 {[%emt 0:00:37]} 25. Qxc5+ {[%emt 0:00:31]} Qxc5 {[%emt 0:01:10]} 26. Rxc5+ {[%emt 0:00:03]} Kd7 {[%emt 0:00:43]} 27. d6 {[%emt 0:02:03]} Kxd6 {[%emt 0:01:19]} 28. b4 {[%emt 0:00:02]} Rd7 {[%emt 0:06:46]} 29. Rd1+ {[%emt 0:03:59]} Ke7 {[%emt 0:00:06]} 30. Rxd7+ {[%emt 0:00:09]} Kxd7 {[%emt 0:00:04]} 31. Bxb7 {[%emt 0:00:02]} Rb8 {[%emt 0:00:22]} 32. Bc6+ {[%emt 0:01:01]} Kd6 {[%emt 0:00:06]} 33. fxg6 {[%emt 0:00:27]} hxg6 {[%emt 0:01:20]} 34. Rc4 {[%emt 0:00:16]} Nf6 {[%emt 0:02:59]} 1/2-1/2

[Event "Reykjavik Open 2025"]
[Site "Reykjavik"]
[Date "2025.04.10"]
[Round "2.29"]
[White "Kirk, Ezra"]
[Black "Harish, Neeraj"]
[Result "1-0"]
[Annotator "RC"]
[ECO "A13"]
[WhiteElo "2394"]
[BlackElo "2169"]
[PlyCount "90"]
[EventDate "2025.04.09"]
[EventType "swiss"]
[EventCountry "ISL"]
[SourceTitle "playchess.com"]
[Source "ChessBase"]
[SourceQuality "1"]
[TimeControl "40/5400+30:1800+30"]

1. Nf3 {[%emt 0:01:22]} d5 {[%emt 0:00:39]} 2. c4 {[%emt 0:00:10]} e6 {[%emt 0:00:06]} 3. g3 {[%emt 0:00:25]} d4 {[%emt 0:00:25]} 4. Bg2 {[%emt 0:01:01]} Nc6 {[%emt 0:00:23]} 5. O-O {[%emt 0:07:38]} Bc5 {[%emt 0:00:26]} 6. e3 {[%emt 0:05:57]} a5 {[%emt 0:07:59]} 7. exd4 {[%emt 0:01:53]} Nxd4 {[%emt 0:00:29]} 8. Nxd4 {[%emt 0:01:49]} Bxd4 {[%emt 0:00:13]} 9. Nc3 {[%emt 0:01:48]} Ne7 {[%emt 0:04:34]} 10. Ne2 {[%emt 0:05:14]} Bf6 {[%emt 0:03:08]} 11. Qa4+ {[%emt 0:12:47]} Bd7 {[%emt 0:05:46]} 12. Qb3 {[%emt 0:04:21]} a4 {[%emt 0:02:35]} 13. Qxb7 {[%emt 0:03:43]} Rb8 {[%emt 0:00:10]} 14. Qa7 {[%emt 0:02:32]} O-O {[%emt 0:02:57]} 15. Qc5 {[%emt 0:05:54]} Nf5 {[%emt 0:06:00]} 16. d4 {[%emt 0:03:21]} Be7 {[%emt 0:02:50]} 17. Qa5 {[%emt 0:01:25]} c5 {[%emt 0:02:35]} 18. Qxd8 {[%emt 0:02:37]} Rfxd8 {[%emt 0:00:05]} 19. dxc5 {[%emt 0:00:43]} Rdc8 {[%emt 0:05:11]} 20. Rd1 {[%emt 0:03:13]} Bc6 {[%emt 0:00:36]} 21. Bxc6 {[%emt 0:02:42]} Rxc6 {[%emt 0:00:09]} 22. b3 {[%emt 0:01:20]} Bxc5 {[%emt 0:04:52]} 23. Bf4 {[%emt 0:01:47]} Ra8 {[%emt 0:03:44]} 24. Rab1 {[%emt 0:01:11]} axb3 {[%emt 0:01:58]} 25. axb3 {[%emt 0:01:26]} Rb6 {[%emt 0:00:58]} 26. Nc3 {[%emt 0:03:39]} Bb4 {[%emt 0:05:59]} 27. Nb5 {[%emt 0:00:59]} h5 {[%emt 0:01:47]} 28. Ra1 {[%emt 0:04:49]} Rba6 {[%emt 0:00:57]} 29. Rxa6 {[%emt 0:00:44]} Rxa6 {[%emt 0:00:09]} 30. Bd2 {[%emt 0:01:25]} Be7 {[%emt 0:12:41]} 31. Bc3 {[%emt 0:01:11]} Ra8 {[%emt 0:05:22]} 32. Kg2 {[%emt 0:02:29]} Kh7 {[%emt 0:00:58]} 33. Rd7 {[%emt 0:00:38]} Kg6 {[%emt 0:01:40]} 34. b4 {[%emt 0:01:01]} Bf6 {[%emt 0:03:42]} 35. Bxf6 {[%emt 0:00:56]} Kxf6 {[%emt 0:00:07]} 36. Na7 {[%emt 0:01:51]} e5 {[%emt 0:01:56]} 37. c5 {[%emt 0:01:08]} Ke6 {[%emt 0:03:39]} 38. c6 {[%emt 0:00:28]} e4 {[%emt 0:03:19]} 39. Nb5 {[%emt 0:03:54]} Rc8 {[%emt 0:02:46]} 40. Nc7+ {[%emt 0:01:44]} Ke5 {[%emt 0:02:17]} 41. b5 {[%emt 0:32:02]} Nd4 {[%emt 0:33:22]} 42. Rd5+ {[%emt 0:00:23]} Kf6 {[%emt 0:00:07]} 43. Rxd4 {[%emt 0:00:14]} Rxc7 {[%emt 0:00:06]} 44. Rc4 {[%emt 0:01:31]} Ke6 {[%emt 0:00:11]} 45. b6 {[%emt 0:00:12]} Kd5 {[%emt 0:00:05]} 1-0